[Event "1st SOA-GM Festival 2024"]
[Site "Bhubaneswar"]
[Date "2024.02.01"]
[Round "1.9"]
[White "Tahbaz, Arash"]
[Black "Mahindrakar Indrajeet"]
[Result "1-0"]
[WhiteElo "2425"]
[BlackElo "2039"]
[PlyCount "63"]
[EventDate "2024.02.01"]
[EventType "swiss"]
[EventCountry "IND"]
[TimeControl "5400+30"]

1. Nf3 {[%emt 0:00:18]} Nf6 {[%emt 0:02:12]} 2. g3 {[%emt 0:00:06]} g6 {[%emt 0:02:24]} 3. Bg2 {[%emt 0:00:22]} Bg7 {[%emt 0:00:11]} 4. O-O {[%emt 0:00:05]} d5 {[%emt 0:05:15]} 5. d3 {[%emt 0:01:24]} c5 {[%emt 0:01:19]} 6. Nbd2 {[%emt 0:04:40]} Nc6 {[%emt 0:00:37]} 7. e4 {[%emt 0:00:06]} O-O {[%emt 0:01:04]} 8. Re1 {[%emt 0:00:05]} e6 {[%emt 0:02:47]} 9. Qe2 {[%emt 0:01:03]} b5 {[%emt 0:03:53]} 10. Nf1 {[%emt 0:02:21]} a5 {[%emt 0:10:38]} 11. e5 {[%emt 0:00:21]} Nd7 {[%emt 0:00:08]} 12. Bf4 {[%emt 0:00:05]} b4 {[%emt 0:00:27]} 13. h4 {[%emt 0:00:51]} Ba6 {[%emt 0:01:57]} 14. Qe3 {[%emt 0:08:33]} Qc7 {[%emt 0:14:02]} 15. N1h2 {[%emt 0:03:01]} Nd4 {[%emt 0:05:15]} 16. Nxd4 {[%emt 0:01:36]} cxd4 {[%emt 0:00:05]} 17. Qe2 {[%emt 0:00:47]} Rfc8 {[%emt 0:04:37]} 18. Rac1 {[%emt 0:00:07]} Bb5 {[%emt 0:04:21]} 19. Ng4 {[%emt 0:09:27]} Ra6 {[%emt 0:06:15]} 20. h5 {[%emt 0:33:54]} Rc6 {[%emt 0:01:54]} 21. Nf6+ {[%emt 0:04:37]} Bxf6 {[%emt 0:08:17]} 22. exf6 {[%emt 0:00:06]} Qb6 {[%emt 0:15:12]} 23. hxg6 {[%emt 0:00:42]} fxg6 {[%emt 0:03:43]} 24. f7+ {[%emt 0:06:50]} Kxf7 {[%emt 0:00:23]} 25. Bxd5 {[%emt 0:00:16]} Nf6 {[%emt 0:03:39]} 26. Bxc6 {[%emt 0:00:36]} Rxc6 {[%emt 0:01:27]} 27. Be5 {[%emt 0:00:53]} Nd7 {[%emt 0:00:52]} 28. Qg4 {[%emt 0:01:30]} Nxe5 {[%emt 0:00:25]} 29. Rxe5 {[%emt 0:00:12]} Kg7 {[%emt 0:00:53]} 30. Rce1 {[%emt 0:00:17]} Rc7 {[%emt 0:00:41]} 31. Rxe6 {[%emt 0:00:12]} Qa7 {[%emt 0:00:33]} 32. Qg5 {[%emt 0:00:13]} 1-0

[Event "1st SOA-GM Festival 2024"]
[Site "Bhubaneswar"]
[Date "2024.02.01"]
[Round "1.10"]
[White "Vignesh Advaith Vemula"]
[Black "Kaustuv, Kundu"]
[Result "1-0"]
[WhiteElo "2028"]
[BlackElo "2423"]
[PlyCount "69"]
[EventDate "2024.02.01"]
[EventType "swiss"]
[EventCountry "IND"]
[TimeControl "5400+30"]

1. e4 {[%emt 0:00:03]} c5 {[%emt 0:00:44]} 2. Nf3 {[%emt 0:00:06]} Nc6 {[%emt 0:00:19]} 3. d4 {[%emt 0:00:06]} cxd4 {[%emt 0:00:07]} 4. Nxd4 {[%emt 0:00:06]} e6 {[%emt 0:03:58]} 5. Nc3 {[%emt 0:00:11]} Qc7 {[%emt 0:00:07]} 6. Be2 {[%emt 0:00:09]} a6 {[%emt 0:00:15]} 7. O-O {[%emt 0:00:07]} Nf6 {[%emt 0:00:23]} 8. Be3 {[%emt 0:00:08]} Be7 {[%emt 0:00:09]} 9. f4 {[%emt 0:00:25]} d6 {[%emt 0:00:13]} 10. Kh1 {[%emt 0:00:06]} O-O {[%emt 0:02:04]} 11. Qe1 {[%emt 0:00:05]} Nxd4 {[%emt 0:04:02]} 12. Bxd4 {[%emt 0:00:06]} b5 {[%emt 0:00:09]} 13. Qg3 {[%emt 0:00:09]} Bb7 {[%emt 0:00:45]} 14. a3 {[%emt 0:00:08]} Rad8 {[%emt 0:02:46]} 15. Rae1 {[%emt 0:00:18]} g6 {[%emt 0:07:32]} 16. Bd3 {[%emt 0:19:56]} Nh5 {[%emt 0:13:04]} 17. Qf2 {[%emt 0:01:36]} Rd7 {[%emt 0:08:57]} 18. f5 {[%emt 0:05:09]} e5 {[%emt 0:00:46]} 19. Be3 {[%emt 0:03:11]} Bf6 {[%emt 0:07:24]} 20. Nd5 {[%emt 0:04:00]} Bxd5 {[%emt 0:00:26]} 21. exd5 {[%emt 0:00:05]} Qd8 {[%emt 0:07:29]} 22. g3 {[%emt 0:10:32]} Bg7 {[%emt 0:05:29]} 23. Qf3 {[%emt 0:03:34]} Re8 {[%emt 0:02:14]} 24. Be4 {[%emt 0:00:52]} Qc8 {[%emt 0:08:47]} 25. Bg5 {[%emt 0:01:18]} Rc7 {[%emt 0:01:10]} 26. c3 {[%emt 0:07:09]} a5 {[%emt 0:03:43]} 27. Bd3 {[%emt 0:05:43]} Qb7 {[%emt 0:00:05]} 28. g4 {[%emt 0:01:09]} gxf5 {[%emt 0:11:32]} 29. gxh5 {[%emt 0:02:23]} e4 {[%emt 0:00:07]} 30. Qg2 {[%emt 0:00:40]} Kf8 {[%emt 0:01:05]} 31. h6 {[%emt 0:00:36]} Bh8 {[%emt 0:01:59]} 32. Be2 {[%emt 0:03:16]} Qxd5 {[%emt 0:00:33]} 33. Rd1 {[%emt 0:00:07]} Qc5 {[%emt 0:00:51]} 34. Qh3 {[%emt 0:00:06]} Re5 {[%emt 0:01:02]} 35. Be3 {[%emt 0:00:18]} 1-0

[Event "1st SOA-GM Festival 2024"]
[Site "Bhubaneswar"]
[Date "2024.02.01"]
[Round "1.11"]
[White "Sidhant, Mohapatra"]
[Black "Abhay Bandewar"]
[Result "1/2-1/2"]
[WhiteElo "2421"]
[BlackElo "2025"]
[PlyCount "109"]
[EventDate "2024.02.01"]
[EventType "swiss"]
[EventCountry "IND"]
[TimeControl "5400+30"]

1. d4 {[%emt 0:00:18]} d5 {[%emt 0:00:14]} 2. Nf3 {[%emt 0:01:51]} e6 {[%emt 0:01:31]} 3. c4 {[%emt 0:02:14]} c6 {[%emt 0:02:25]} 4. e3 {[%emt 0:00:30]} Nf6 {[%emt 0:00:26]} 5. b3 {[%emt 0:02:23]} Be7 {[%emt 0:07:24]} 6. Bd3 {[%emt 0:02:20]} b6 {[%emt 0:07:19]} 7. Bb2 {[%emt 0:02:31]} Bb7 {[%emt 0:02:17]} 8. O-O {[%emt 0:00:17]} O-O {[%emt 0:00:41]} 9. Nbd2 {[%emt 0:01:15]} Nbd7 {[%emt 0:11:06]} 10. Qc2 {[%emt 0:01:59]} h6 {[%emt 0:05:07]} 11. Rad1 {[%emt 0:01:09]} c5 {[%emt 0:02:57]} 12. cxd5 {[%emt 0:01:50]} Nxd5 {[%emt 0:01:51]} 13. Qb1 {[%emt 0:00:04]} cxd4 {[%emt 0:02:40]} 14. Bxd4 {[%emt 1:18:49]} Bf6 {[%emt 0:01:40]} 15. Qb2 {[%emt 0:00:00]} e5 {[%emt 0:07:01]} 16. Nxe5 {[%emt 0:00:00]} Nxe5 {[%emt 0:00:21]} 17. Bxe5 {[%emt 0:00:00]} Nxe3 {[%emt 0:00:40]} 18. fxe3 {[%emt 0:00:00]} Bxe5 {[%emt 0:00:20]} 19. Qxe5 {[%emt 0:00:00]} Qxd3 {[%emt 0:00:12]} 20. Nc4 {[%emt 0:00:00]} Qg6 {[%emt 0:03:46]} 21. Rf2 {[%emt 0:00:00]} Rad8 {[%emt 0:02:56]} 22. Nd6 {[%emt 0:00:00]} Rd7 {[%emt 0:07:33]} 23. Rd4 {[%emt 0:00:00]} Qg5 {[%emt 0:06:10]} 24. Nf5 {[%emt 0:00:00]} Rxd4 {[%emt 0:01:20]} 25. exd4 {[%emt 0:00:00]} Kh7 {[%emt 0:05:43]} 26. h4 {[%emt 0:00:00]} Qf6 {[%emt 0:05:31]} 27. Qxf6 {[%emt 0:00:00]} gxf6 {[%emt 0:00:06]} 28. Nd6 {[%emt 0:00:00]} Bd5 {[%emt 0:00:19]} 29. Rf5 {[%emt 0:00:00]} Be6 {[%emt 0:04:00]} 30. Rxf6 {[%emt 0:00:00]} Kg7 {[%emt 0:01:17]} 31. Rf4 {[%emt 0:00:00]} Rd8 {[%emt 0:00:21]} 32. Nb5 {[%emt 0:00:00]} Rc8 {[%emt 0:01:06]} 33. Rf3 {[%emt 0:00:00]} Rc1+ {[%emt 0:01:26]} 34. Rf1 {[%emt 0:00:00]} Rc2 {[%emt 0:00:19]} 35. Rf2 {[%emt 0:00:00]} Rc1+ {[%emt 0:00:23]} 36. Kh2 {[%emt 0:00:00]} a6 {[%emt 0:00:36]} 37. Na3 {[%emt 0:00:00]} Rd1 {[%emt 0:00:05]} 38. Nc2 {[%emt 0:00:00]} Rd3 {[%emt 0:01:03]} 39. Re2 {[%emt 0:00:00]} a5 {[%emt 0:01:20]} 40. Kg1 {[%emt 0:00:00]} Rd1+ {[%emt 0:02:10]} 41. Kh2 {[%emt 0:00:00]} Rd3 {[%emt 0:00:18]} 42. Re4 {[%emt 0:00:00]} Rd2 {[%emt 0:01:09]} 43. Ne3 {[%emt 0:00:00]} b5 {[%emt 0:00:52]} 44. Re5 {[%emt 0:00:00]} Rxd4 {[%emt 0:00:30]} 45. Rxb5 {[%emt 0:00:00]} a4 {[%emt 0:00:11]} 46. h5 {[%emt 0:00:00]} axb3 {[%emt 0:00:56]} 47. axb3 {[%emt 0:00:00]} Rd3 {[%emt 0:00:44]} 48. Nc4 {[%emt 0:00:00]} Rc3 {[%emt 0:00:21]} 49. Na5 {[%emt 0:00:00]} Bd7 {[%emt 0:01:56]} 50. Rb7 {[%emt 0:00:00]} Bf5 {[%emt 0:01:19]} 51. b4 {[%emt 0:00:00]} Rc2 {[%emt 0:00:18]} 52. Re7 {[%emt 0:00:00]} Be6 {[%emt 0:00:37]} 53. b5 {[%emt 0:00:00]} Rb2 {[%emt 0:00:16]} 54. Rb7 {[%emt 0:00:00]} Bd5 {[%emt 0:00:19]} 55. Rb8 {[%emt 0:00:00]} 1/2-1/2

[Event "1st SOA-GM Festival 2024"]
[Site "Bhubaneswar"]
[Date "2024.02.01"]
[Round "1.12"]
[White "Jai Sankar Subramanian"]
[Black "Adireddy Arjun"]
[Result "0-1"]
[WhiteElo "2025"]
[BlackElo "2415"]
[PlyCount "82"]
[EventDate "2024.02.01"]
[EventType "swiss"]
[EventCountry "IND"]
[TimeControl "5400+30"]

1. e4 {[%emt 0:00:03]} c5 {[%emt 0:00:27]} 2. Nf3 {[%emt 0:00:02]} d6 {[%emt 0:00:40]} 3. d4 {[%emt 0:00:02]} cxd4 {[%emt 0:00:08]} 4. Nxd4 {[%emt 0:00:03]} Nf6 {[%emt 0:00:11]} 5. Nc3 {[%emt 0:00:02]} a6 {[%emt 0:00:09]} 6. h3 {[%emt 0:00:02]} e6 {[%emt 0:01:11]} 7. g4 {[%emt 0:00:40]} d5 {[%emt 0:00:06]} 8. exd5 {[%emt 0:01:54]} Nxd5 {[%emt 0:00:11]} 9. Nde2 {[%emt 0:05:46]} Bb4 {[%emt 0:03:33]} 10. Bg2 {[%emt 0:01:33]} O-O {[%emt 0:01:05]} 11. O-O {[%emt 0:00:23]} Bxc3 {[%emt 0:08:00]} 12. Nxc3 {[%emt 0:02:47]} Nxc3 {[%emt 0:00:10]} 13. bxc3 {[%emt 0:00:09]} Qc7 {[%emt 0:00:06]} 14. Rb1 {[%emt 0:02:38]} Nc6 {[%emt 0:09:15]} 15. Be3 {[%emt 0:06:27]} b5 {[%emt 0:02:50]} 16. c4 {[%emt 0:03:58]} Rb8 {[%emt 0:10:27]} 17. Qe2 {[%emt 0:33:23]} Na5 {[%emt 0:10:03]} 18. c5 {[%emt 0:18:40]} Bb7 {[%emt 0:01:43]} 19. Bxb7 {[%emt 0:01:57]} Rxb7 {[%emt 0:01:36]} 20. Rfd1 {[%emt 0:01:11]} Nc4 {[%emt 0:01:55]} 21. a4 {[%emt 0:00:10]} Qc6 {[%emt 0:04:45]} 22. axb5 {[%emt 0:02:02]} axb5 {[%emt 0:00:08]} 23. Rb3 {[%emt 0:00:37]} f5 {[%emt 0:05:32]} 24. f4 {[%emt 0:05:02]} fxg4 {[%emt 0:02:12]} 25. hxg4 {[%emt 0:00:02]} Rbf7 {[%emt 0:01:48]} 26. Qg2 {[%emt 0:08:27]} Qc7 {[%emt 0:04:06]} 27. Rf1 {[%emt 0:05:09]} Nxe3 {[%emt 0:00:32]} 28. Rxe3 {[%emt 0:00:01]} Rxf4 {[%emt 0:01:30]} 29. Rxf4 {[%emt 0:01:15]} Qxf4 {[%emt 0:00:03]} 30. Rxe6 {[%emt 0:00:31]} Qd4+ {[%emt 0:06:06]} 31. Kh1 {[%emt 0:00:01]} Qxc5 {[%emt 0:00:11]} 32. Qe4 {[%emt 0:01:00]} Qc8 {[%emt 0:05:48]} 33. Re7 {[%emt 0:00:27]} Qd8 {[%emt 0:00:37]} 34. Qe6+ {[%emt 0:00:34]} Kh8 {[%emt 0:00:02]} 35. Qd7 {[%emt 0:00:03]} Qa8+ {[%emt 0:00:08]} 36. Kg1 {[%emt 0:00:57]} Qa1+ {[%emt 0:00:02]} 37. Kg2 {[%emt 0:00:31]} Qf1+ {[%emt 0:00:03]} 38. Kh2 {[%emt 0:00:30]} Rf2+ {[%emt 0:00:03]} 39. Kg3 {[%emt 0:00:02]} Qg2+ {[%emt 0:00:15]} 40. Kh4 {[%emt 0:00:00]} Qh2+ {[%emt 0:00:10]} 41. Kg5 {[%emt 0:00:02]} Qh6# {[%emt 0:00:09]} 0-1

[Event "1st SOA-GM Festival 2024"]
[Site "Bhubaneswar"]
[Date "2024.02.01"]
[Round "1.13"]
[White "Namitbir Singh Walia"]
[Black "Patil Priyanshu"]
[Result "1-0"]
[WhiteElo "2408"]
[BlackElo "2022"]
[PlyCount "79"]
[EventDate "2024.02.01"]
[EventType "swiss"]
[EventCountry "IND"]
[TimeControl "5400+30"]

1. e4 {[%emt 0:00:03]} c5 {[%emt 0:00:06]} 2. Nf3 {[%emt 0:00:06]} d6 {[%emt 0:00:06]} 3. d4 {[%emt 0:00:07]} cxd4 {[%emt 0:00:04]} 4. Nxd4 {[%emt 0:00:08]} Nf6 {[%emt 0:00:03]} 5. Nc3 {[%emt 0:00:09]} a6 {[%emt 0:00:01]} 6. h3 {[%emt 0:00:08]} e6 {[%emt 0:00:04]} 7. g4 {[%emt 0:00:14]} Nfd7 {[%emt 0:00:01]} 8. Bg2 {[%emt 0:00:56]} Be7 {[%emt 0:00:18]} 9. g5 {[%emt 0:03:29]} Nc6 {[%emt 0:07:57]} 10. h4 {[%emt 0:01:37]} Qb6 {[%emt 0:16:34]} 11. Nb3 {[%emt 0:06:28]} Qc7 {[%emt 0:03:11]} 12. f4 {[%emt 0:06:48]} b5 {[%emt 0:07:28]} 13. Be3 {[%emt 0:04:32]} Bb7 {[%emt 0:04:25]} 14. Qe2 {[%emt 0:06:08]} b4 {[%emt 0:07:13]} 15. Na4 {[%emt 0:09:39]} Rc8 {[%emt 0:13:50]} 16. Qf2 {[%emt 0:19:09]} Na5 {[%emt 0:09:22]} 17. Nxa5 {[%emt 0:04:53]} Qxa5 {[%emt 0:00:02]} 18. b3 {[%emt 0:03:22]} Qc7 {[%emt 0:02:38]} 19. O-O-O {[%emt 0:03:49]} Bc6 {[%emt 0:01:55]} 20. Nb6 {[%emt 0:04:27]} Nxb6 {[%emt 0:01:37]} 21. Bxb6 {[%emt 0:00:03]} Qb7 {[%emt 0:00:02]} 22. Rhe1 {[%emt 0:02:11]} O-O {[%emt 0:06:35]} 23. Kb1 {[%emt 0:03:39]} a5 {[%emt 0:08:23]} 24. Bd4 {[%emt 0:02:14]} a4 {[%emt 0:01:18]} 25. Ba1 {[%emt 0:02:19]} Rfd8 {[%emt 0:02:33]} 26. Qd4 {[%emt 0:01:29]} Bf8 {[%emt 0:00:06]} 27. h5 {[%emt 0:01:19]} Re8 {[%emt 0:02:51]} 28. g6 {[%emt 0:05:09]} fxg6 {[%emt 0:02:27]} 29. hxg6 {[%emt 0:00:02]} h6 {[%emt 0:01:13]} 30. Bf1 {[%emt 0:06:35]} e5 {[%emt 0:01:10]} 31. fxe5 {[%emt 0:01:01]} dxe5 {[%emt 0:00:01]} 32. Bc4+ {[%emt 0:01:10]} Kh8 {[%emt 0:00:02]} 33. Qe3 {[%emt 0:00:27]} Qe7 {[%emt 0:00:58]} 34. Rh1 {[%emt 0:01:02]} Red8 {[%emt 0:00:55]} 35. Rdf1 {[%emt 0:00:19]} Rd7 {[%emt 0:01:58]} 36. Bxe5 {[%emt 0:01:49]} Qxe5 {[%emt 0:00:32]} 37. Rxf8+ {[%emt 0:00:09]} Rxf8 {[%emt 0:00:01]} 38. Rxh6+ {[%emt 0:00:02]} gxh6 {[%emt 0:00:07]} 39. Qxh6+ {[%emt 0:00:04]} Rh7 {[%emt 0:00:04]} 40. Qxh7# {[%emt 0:00:06]} 1-0

[Event "1st SOA-GM Festival 2024"]
[Site "Bhubaneswar"]
[Date "2024.02.01"]
[Round "1.14"]
[White "Roneet Das"]
[Black "Panda Sambit"]
[Result "0-1"]
[WhiteElo "2018"]
[BlackElo "2404"]
[PlyCount "82"]
[EventDate "2024.02.01"]
[EventType "swiss"]
[EventCountry "IND"]
[TimeControl "5400+30"]

1. d4 {[%emt 0:00:51]} Nf6 {[%emt 0:00:08]} 2. Bf4 {[%emt 0:02:37]} d5 {[%emt 0:00:33]} 3. e3 {[%emt 0:00:47]} e6 {[%emt 0:01:12]} 4. Nd2 {[%emt 0:01:13]} c5 {[%emt 0:01:07]} 5. Ngf3 {[%emt 0:04:53]} Nc6 {[%emt 0:00:16]} 6. c3 {[%emt 0:01:48]} cxd4 {[%emt 0:00:29]} 7. exd4 {[%emt 0:00:08]} Nh5 {[%emt 0:00:03]} 8. Bg3 {[%emt 0:00:57]} g6 {[%emt 0:00:18]} 9. Be2 {[%emt 0:05:19]} Bg7 {[%emt 0:00:19]} 10. Nb3 {[%emt 0:03:01]} O-O {[%emt 0:00:23]} 11. O-O {[%emt 0:02:57]} Nxg3 {[%emt 0:05:14]} 12. hxg3 {[%emt 0:02:38]} b6 {[%emt 0:00:13]} 13. Nc1 {[%emt 0:00:45]} f6 {[%emt 0:00:21]} 14. Bb5 {[%emt 0:02:27]} Qd6 {[%emt 0:04:01]} 15. Re1 {[%emt 0:01:53]} Bd7 {[%emt 0:00:07]} 16. Nd3 {[%emt 0:01:34]} a6 {[%emt 0:05:01]} 17. Ba4 {[%emt 0:04:16]} Rae8 {[%emt 0:02:07]} 18. Nf4 {[%emt 0:15:53]} Kh8 {[%emt 0:01:03]} 19. Bc2 {[%emt 0:02:30]} Re7 {[%emt 0:10:50]} 20. Qd3 {[%emt 0:13:09]} a5 {[%emt 0:02:42]} 21. Rad1 {[%emt 0:05:04]} Be8 {[%emt 0:00:50]} 22. Ne2 {[%emt 0:13:49]} Bf7 {[%emt 0:03:27]} 23. g4 {[%emt 0:01:06]} e5 {[%emt 0:03:19]} 24. dxe5 {[%emt 0:00:26]} fxe5 {[%emt 0:04:33]} 25. Ng3 {[%emt 0:00:39]} Qc5 {[%emt 0:00:36]} 26. Ng5 {[%emt 0:02:25]} Bg8 {[%emt 0:01:35]} 27. Qe2 {[%emt 0:03:41]} e4 {[%emt 0:04:23]} 28. Nh3 {[%emt 0:00:39]} Ne5 {[%emt 0:01:37]} 29. Bb3 {[%emt 0:01:17]} b5 {[%emt 0:03:51]} 30. a3 {[%emt 0:02:16]} a4 {[%emt 0:01:25]} 31. Ba2 {[%emt 0:00:22]} Nd3 {[%emt 0:00:25]} 32. Rf1 {[%emt 0:05:10]} Be5 {[%emt 0:05:34]} 33. Rxd3 {[%emt 0:00:00]} exd3 {[%emt 0:00:34]} 34. Qxd3 {[%emt 0:00:00]} Bg7 {[%emt 0:00:48]} 35. Bb1 {[%emt 0:00:12]} d4 {[%emt 0:03:24]} 36. Ne4 {[%emt 0:00:48]} Qc4 {[%emt 0:05:28]} 37. Nd6 {[%emt 0:00:53]} Qxd3 {[%emt 0:00:25]} 38. Bxd3 {[%emt 0:00:01]} dxc3 {[%emt 0:00:07]} 39. Bxb5 {[%emt 0:00:41]} cxb2 {[%emt 0:00:15]} 40. Bxa4 {[%emt 0:00:10]} Ba2 {[%emt 0:00:45]} 41. Bc2 {[%emt 0:00:07]} Rc7 {[%emt 0:00:03]} 0-1

[Event "1st SOA-GM Festival 2024"]
[Site "Bhubaneswar"]
[Date "2024.02.01"]
[Round "1.15"]
[White "Ritviz, Parab"]
[Black "Galas, Bernadette"]
[Result "1-0"]
[WhiteElo "2391"]
[BlackElo "2012"]
[PlyCount "59"]
[EventDate "2024.02.01"]
[EventType "swiss"]
[EventCountry "IND"]
[TimeControl "5400+30"]

1. e4 {[%emt 0:00:18]} c5 {[%emt 0:00:27]} 2. Nc3 {[%emt 0:00:25]} Nc6 {[%emt 0:00:19]} 3. f4 {[%emt 0:00:14]} g6 {[%emt 0:01:13]} 4. Nf3 {[%emt 0:00:25]} Bg7 {[%emt 0:00:17]} 5. Bb5 {[%emt 0:00:20]} Nd4 {[%emt 0:03:29]} 6. O-O {[%emt 0:00:34]} Nxb5 {[%emt 0:03:54]} 7. Nxb5 {[%emt 0:00:07]} a6 {[%emt 0:00:19]} 8. Nc3 {[%emt 0:00:13]} d6 {[%emt 0:00:39]} 9. d3 {[%emt 0:00:30]} b5 {[%emt 0:04:59]} 10. Qe1 {[%emt 0:02:50]} b4 {[%emt 0:04:14]} 11. Nd5 {[%emt 0:07:59]} Nf6 {[%emt 0:10:36]} 12. Ne3 {[%emt 0:19:33]} Ng4 {[%emt 0:17:01]} 13. Nc4 {[%emt 0:03:42]} O-O {[%emt 0:01:27]} 14. a3 {[%emt 0:04:10]} Be6 {[%emt 0:10:38]} 15. Qh4 {[%emt 0:15:40]} Nf6 {[%emt 0:09:39]} 16. Ne3 {[%emt 0:05:11]} Qc8 {[%emt 0:07:13]} 17. f5 {[%emt 0:06:37]} Bd7 {[%emt 0:01:46]} 18. Nc4 {[%emt 0:02:03]} Qc7 {[%emt 0:04:25]} 19. Bh6 {[%emt 0:02:29]} Be6 {[%emt 0:00:00]} 20. Ne3 {[%emt 0:00:00]} Bd7 {[%emt 0:01:00]} 21. Nc4 {[%emt 0:01:00]} Bb5 {[%emt 0:17:25]} 22. Ng5 {[%emt 0:06:44]} Bxc4 {[%emt 0:00:00]} 23. dxc4 {[%emt 0:00:08]} Qd7 {[%emt 0:00:00]} 24. fxg6 {[%emt 0:00:52]} Qg4 {[%emt 0:00:00]} 25. Qxg4 {[%emt 0:06:54]} Nxg4 {[%emt 0:00:00]} 26. Bxg7 {[%emt 0:05:31]} Kxg7 {[%emt 0:00:00]} 27. gxf7 {[%emt 0:00:04]} Kg6 {[%emt 0:00:00]} 28. h4 {[%emt 0:01:57]} h6 {[%emt 0:00:29]} 29. Ne6 {[%emt 0:00:07]} Rxf7 {[%emt 0:00:17]} 30. h5+ {[%emt 0:08:53]} 1-0

[Event "1st SOA-GM Festival 2024"]
[Site "Bhubaneswar"]
[Date "2024.02.01"]
[Round "1.16"]
[White "Jaiswal, Rupesh"]
[Black "Audi Ameya"]
[Result "0-1"]
[WhiteElo "2009"]
[BlackElo "2385"]
[PlyCount "79"]
[EventDate "2024.02.01"]
[EventType "swiss"]
[EventCountry "IND"]
[TimeControl "5400+30"]

1. e4 {[%emt 0:00:04]} e5 {[%emt 0:00:41]} 2. Nf3 {[%emt 0:00:05]} Nc6 {[%emt 0:00:04]} 3. d4 {[%emt 0:00:04]} exd4 {[%emt 0:00:04]} 4. Nxd4 {[%emt 0:00:05]} Qf6 {[%emt 0:00:07]} 5. Be3 {[%emt 0:01:44]} Bc5 {[%emt 0:00:18]} 6. c3 {[%emt 0:00:03]} Nge7 {[%emt 0:00:18]} 7. Bb5 {[%emt 0:00:37]} O-O {[%emt 0:08:18]} 8. O-O {[%emt 0:00:47]} Bb6 {[%emt 0:09:07]} 9. f4 {[%emt 0:04:58]} d5 {[%emt 0:10:16]} 10. e5 {[%emt 0:02:12]} Qg6 {[%emt 0:00:16]} 11. Bd3 {[%emt 0:05:30]} Nf5 {[%emt 0:01:00]} 12. Bxf5 {[%emt 0:01:52]} Bxf5 {[%emt 0:00:06]} 13. Nxf5 {[%emt 0:00:02]} Qxf5 {[%emt 0:00:07]} 14. Bxb6 {[%emt 0:00:03]} axb6 {[%emt 0:00:07]} 15. Na3 {[%emt 0:03:23]} Qd7 {[%emt 0:08:28]} 16. Nc2 {[%emt 0:04:03]} f6 {[%emt 0:01:38]} 17. exf6 {[%emt 0:00:40]} Rxf6 {[%emt 0:00:13]} 18. Qd2 {[%emt 0:02:24]} Qd6 {[%emt 0:03:19]} 19. a3 {[%emt 0:01:57]} Na5 {[%emt 0:05:47]} 20. Rae1 {[%emt 0:05:30]} Nc4 {[%emt 0:06:38]} 21. Qc1 {[%emt 0:00:04]} Raf8 {[%emt 0:00:02]} 22. g3 {[%emt 0:00:44]} b5 {[%emt 0:05:50]} 23. Kg2 {[%emt 0:02:13]} c5 {[%emt 0:04:34]} 24. b3 {[%emt 0:16:10]} Na5 {[%emt 0:00:13]} 25. b4 {[%emt 0:02:46]} Nc4 {[%emt 0:05:25]} 26. Qd1 {[%emt 0:01:58]} b6 {[%emt 0:01:46]} 27. Qd3 {[%emt 0:05:28]} Rd8 {[%emt 0:02:13]} 28. Rf2 {[%emt 0:11:16]} Re6 {[%emt 0:01:23]} 29. Rxe6 {[%emt 0:01:19]} Qxe6 {[%emt 0:00:03]} 30. Re2 {[%emt 0:01:12]} Qf6 {[%emt 0:00:54]} 31. f5 {[%emt 0:05:56]} Rd6 {[%emt 0:06:45]} 32. g4 {[%emt 0:06:09]} h5 {[%emt 0:03:26]} 33. h3 {[%emt 0:00:30]} hxg4 {[%emt 0:04:49]} 34. hxg4 {[%emt 0:00:01]} Qg5 {[%emt 0:00:03]} 35. Kg3 {[%emt 0:03:23]} Qd8 {[%emt 0:01:10]} 36. Kf4 {[%emt 0:02:42]} Rh6 {[%emt 0:00:42]} 37. Re6 {[%emt 0:01:24]} Qc7+ {[%emt 0:02:17]} 38. Kg5 {[%emt 0:03:11]} Ne5 {[%emt 0:00:11]} 39. Re8+ {[%emt 0:00:51]} Kh7 {[%emt 0:00:05]} 40. Kf4 {[%emt 0:07:10]} 0-1

[Event "1st SOA-GM Festival 2024"]
[Site "Bhubaneswar"]
[Date "2024.02.01"]
[Round "1.17"]
[White "Subhayan Kundu"]
[Black "Dhrupad Kashyap"]
[Result "1/2-1/2"]
[WhiteElo "2385"]
[BlackElo "1998"]
[PlyCount "92"]
[EventDate "2024.02.01"]
[EventType "swiss"]
[EventCountry "IND"]
[TimeControl "5400+30"]

1. e4 {[%emt 0:00:20]} c5 {[%emt 0:00:09]} 2. Nf3 {[%emt 0:00:13]} d6 {[%emt 0:00:05]} 3. d4 {[%emt 0:00:10]} cxd4 {[%emt 0:00:08]} 4. Nxd4 {[%emt 0:00:04]} Nf6 {[%emt 0:00:33]} 5. f3 {[%emt 0:00:06]} Nc6 {[%emt 0:00:44]} 6. c4 {[%emt 0:00:21]} Qb6 {[%emt 0:03:07]} 7. Nc2 {[%emt 0:02:03]} g6 {[%emt 0:02:01]} 8. Nc3 {[%emt 0:00:09]} Bg7 {[%emt 0:01:03]} 9. Rb1 {[%emt 0:00:06]} Nb4 {[%emt 0:01:14]} 10. Nxb4 {[%emt 0:18:48]} Qxb4 {[%emt 0:02:08]} 11. a3 {[%emt 0:00:53]} Qb6 {[%emt 0:02:05]} 12. Qd3 {[%emt 0:01:12]} Be6 {[%emt 0:09:22]} 13. b3 {[%emt 0:14:56]} O-O {[%emt 0:01:38]} 14. Nb5 {[%emt 0:09:17]} d5 {[%emt 0:04:55]} 15. Be3 {[%emt 0:07:39]} dxc4 {[%emt 0:10:59]} 16. bxc4 {[%emt 0:00:15]} Qa6 {[%emt 0:11:20]} 17. Qd2 {[%emt 0:02:26]} Rfd8 {[%emt 0:01:31]} 18. Qb4 {[%emt 0:00:20]} Qc6 {[%emt 0:13:49]} 19. Nd4 {[%emt 0:14:09]} Qc8 {[%emt 0:01:37]} 20. c5 {[%emt 0:03:45]} a5 {[%emt 0:00:32]} 21. Qb6 {[%emt 0:00:58]} Nd7 {[%emt 0:01:27]} 22. Qb5 {[%emt 0:00:50]} Nxc5 {[%emt 0:00:53]} 23. Nxe6 {[%emt 0:01:03]} Nxe6 {[%emt 0:00:40]} 24. Bc4 {[%emt 0:01:28]} Nd4 {[%emt 0:02:39]} 25. Bxd4 {[%emt 0:00:26]} Bxd4 {[%emt 0:00:03]} 26. Ke2 {[%emt 0:02:12]} Qc7 {[%emt 0:03:52]} 27. g3 {[%emt 0:00:45]} Qc8 {[%emt 0:02:16]} 28. h3 {[%emt 0:02:36]} Ra6 {[%emt 0:05:57]} 29. Bd3 {[%emt 0:03:39]} Rc6 {[%emt 0:01:38]} 30. Qxa5 {[%emt 0:02:53]} Bc3 {[%emt 0:05:12]} 31. Qb5 {[%emt 0:01:29]} Qe6 {[%emt 0:01:58]} 32. Rb3 {[%emt 0:03:04]} Rxd3 {[%emt 0:07:01]} 33. Kxd3 {[%emt 0:00:09]} Qd7+ {[%emt 0:00:11]} 34. Kc2 {[%emt 0:01:25]} Bb4+ {[%emt 0:00:29]} 35. Kb1 {[%emt 0:00:06]} Rc1+ {[%emt 0:00:28]} 36. Rxc1 {[%emt 0:00:04]} Qxb5 {[%emt 0:00:02]} 37. axb4 {[%emt 0:00:15]} Kg7 {[%emt 0:00:06]} 38. h4 {[%emt 0:03:12]} h5 {[%emt 0:00:25]} 39. f4 {[%emt 0:00:54]} e5 {[%emt 0:00:36]} 40. fxe5 {[%emt 0:01:06]} Qe2 {[%emt 0:00:42]} 41. b5 {[%emt 0:01:43]} Qxe4+ {[%emt 0:00:11]} 42. Ka2 {[%emt 0:00:11]} b6 {[%emt 0:01:30]} 43. Rc6 {[%emt 0:00:09]} Qa4+ {[%emt 0:00:18]} 44. Kb2 {[%emt 0:00:04]} Qd4+ {[%emt 0:00:05]} 45. Ka2 {[%emt 0:00:59]} Qa4+ {[%emt 0:00:16]} 46. Kb2 {[%emt 0:00:08]} Qd4+ {[%emt 0:00:03]} 1/2-1/2